fUST/lending_fUST_20250729
["ID","MTS","AMOUNT","RATE_DAILY","PERIOD"]
[375926297,1753787432145,-19.939068,0.00018275,2]
[375926299,1753787432158,-7353.45656243,0.00018276,2]
[375926301,1753787432170,-15525.40482153,0.00018276,2]
[375926303,1753787432180,-458.96827394,0.00018276,2]
[375926305,1753787432189,-1430.21744503,0.00018511,2]
[375926307,1753787432199,-500.0,0.00018639,2]
[375926309,1753787432208,-500.0,0.00018639,2]
[375926312,1753787432218,-500.0,0.00018639,2]
[375926315,1753787432227,-500.0,0.00018639,2]
[375926318,1753787432237,-500.0,0.00018639,2]
[375926321,1753787432247,-500.0,0.00018639,2]
[375926324,1753787432257,-500.0,0.00018639,2]
[375926328,1753787432267,-500.0,0.00018639,2]
[375926331,1753787432282,-511.9808262,0.00018639,2]
[375926334,1753787432292,-429.36996686,0.00018639,2]
[375926337,1753787432302,-500.0,0.00018639,2]
[375926340,1753787432312,-500.0,0.00018639,2]
[375926343,1753787432322,-358.47792421,0.00018639,2]
[375926346,1753787432332,-645.19849498,0.00018639,2]
[375926349,1753787432342,-500.0,0.00018639,2]
[375926352,1753787432353,-500.0,0.00018639,2]
[375926355,1753787432363,-500.0,0.00018639,2]
[375926357,1753787432374,-500.0,0.00018639,2]
[375926359,1753787432384,-500.0,0.00018639,2]
[375926361,1753787432395,-500.0,0.00018639,2]
[375926363,1753787432410,-500.0,0.00018639,2]
[375926365,1753787432420,-344.04665383,0.00018639,2]
[375926367,1753787432431,-432.41195876,0.00018639,2]
[375926369,1753787432440,-500.0,0.00018639,2]
[375926371,1753787432450,-200.0,0.0001864,15]
[375926373,1753787432459,-200.0,0.0001864,15]
[375926375,1753787432469,-200.0,0.0001864,15]
[375926377,1753787432481,-200.0,0.0001864,15]
[375926379,1753787432490,-828.30554839,0.000187,2]
[375926381,1753787432500,-223.85374636,0.000187,2]
[375926383,1753787432509,-1290.890461,0.000188,3]
[375926385,1753787432519,-18599.43500238,0.00018867,2]
[375926388,1753787432531,-783.2445717,0.00018867,2]
[375926390,1753787432542,-1074.74166481,0.00018867,2]
[375926436,1753787438097,-305.9788493,0.00018639,2]
[375926438,1753787438107,-49287.69840326,0.00018867,2]
[375926455,1753787438254,-85357.4640734,0.00018867,2]
[375926475,1753787438449,-305.9788493,0.00018867,2]
[375926477,1753787438459,-501.1678831,0.00018873,2]
[375926479,1753787438469,-639.37640891,0.000189,2]
[375926481,1753787438479,-209.07173979,0.000189,2]
[375926483,1753787438488,-3772.52832161,0.00018949,2]
[375926485,1753787438498,-2382.37802425,0.00019078,2]
[375926487,1753787438507,-500.0,0.00019173,2]
[375926489,1753787438517,-300.59268937,0.00019173,2]
[375926491,1753787438526,-500.0,0.00019173,2]
[375926493,1753787438535,-364.95972321,0.00019173,2]
[375926495,1753787438545,-500.0,0.00019173,2]
[375926497,1753787438555,-500.40172608,0.00019173,2]
[375926499,1753787438564,-501.01109108,0.00019173,2]
[375926501,1753787438574,-302.75975385,0.00019173,2]
[375926503,1753787438583,-593.74301606,0.00019173,2]
[375926505,1753787438592,-500.98550011,0.00019173,2]
[375926507,1753787438602,-500.0,0.00019173,2]
[375926509,1753787438611,-500.0,0.00019173,2]
[375926511,1753787438621,-500.0,0.00019173,2]
[375926513,1753787438630,-500.0,0.00019173,2]
[375926515,1753787438639,-503.36843688,0.00019173,2]
[375926517,1753787438648,-500.0,0.00019173,2]
[375926519,1753787438659,-500.79552289,0.00019173,2]
[375926521,1753787438668,-500.0,0.00019173,2]
[375926523,1753787438678,-505.205901,0.00019173,2]
[375926525,1753787438687,-502.37147298,0.00019173,2]
[375926527,1753787438696,-460.0,0.00019178,2]
[375926528,1753787438706,-460.0,0.00019178,2]
[375926530,1753787438716,-460.0,0.00019178,2]
[375926532,1753787438727,-306.51938433,0.00019178,2]
[375926535,1753787438736,-460.0,0.00019178,2]
[375926537,1753787438746,-177.48005639,0.00019178,2]
[375926539,1753787438756,-460.0,0.00019178,2]
[375926541,1753787438766,-602.01020099,0.00019178,2]
[375926543,1753787438776,-460.0,0.00019178,2]
[375926544,1753787438785,-460.0,0.00019178,2]
[375926546,1753787438795,-460.0,0.00019178,2]
[375926548,1753787438804,-460.0,0.00019178,2]
[375926550,1753787438813,-460.0,0.00019178,2]
[375926552,1753787438823,-460.0,0.00019178,2]
[375926554,1753787438832,-460.0,0.00019178,2]
[375926556,1753787438843,-460.0,0.00019178,2]
[375926558,1753787438854,-460.0,0.00019178,2]
[375926560,1753787438863,-460.0,0.00019178,2]
[375926562,1753787438872,-460.0,0.00019178,2]
[375926564,1753787438883,-460.0,0.00019178,2]
[375926566,1753787438893,-460.0,0.00019178,2]
[375926568,1753787438902,-461.04741572,0.00019178,2]
[375926570,1753787438913,-460.0,0.00019178,2]
[375926572,1753787438923,-460.0,0.00019178,2]
[375926574,1753787438932,-289.76699727,0.00019178,2]
[375926576,1753787438941,-460.0,0.00019178,2]
[375926578,1753787438951,-460.0,0.00019178,2]
[375926580,1753787438960,-460.0,0.00019178,2]
[375926582,1753787438969,-460.0,0.00019178,2]
[375926584,1753787438978,-460.0,0.00019178,2]
[375926585,1753787438988,-460.0,0.00019178,2]
[375926587,1753787438997,-463.51863419,0.00019178,2]
[375926589,1753787439007,-460.0,0.00019178,2]
[375926591,1753787439017,-460.0,0.00019178,2]
[375926593,1753787439027,-460.0,0.00019178,2]
[375926595,1753787439036,-460.0,0.00019178,2]
[375926597,1753787439045,-460.0,0.00019178,2]
[375926599,1753787439055,-460.0,0.00019178,2]
[375926601,1753787439065,-487.35553279,0.00019178,2]
[375926602,1753787439075,-460.0,0.00019178,2]
[375926604,1753787439085,-460.0,0.00019178,2]
[375926606,1753787439095,-460.0,0.00019178,2]
[375926607,1753787439104,-460.0,0.00019178,2]
[375926608,1753787439113,-460.0,0.00019178,2]
[375926609,1753787439123,-461.99449265,0.00019178,2]
[375926610,1753787439132,-460.0,0.00019178,2]
[375926611,1753787439141,-460.0,0.00019178,2]
[375926612,1753787439151,-460.0,0.00019178,2]
[375926613,1753787439161,-460.0,0.00019178,2]
[375926614,1753787439170,-460.0,0.00019178,2]
[375926615,1753787439180,-460.0,0.00019178,2]
[375926616,1753787439189,-460.0,0.00019178,2]
[375926617,1753787439198,-469.62,0.00019178,2]
[375926618,1753787439208,-460.0,0.00019178,2]
[375926619,1753787439217,-460.0,0.00019178,2]
[375926620,1753787439227,-460.0,0.00019178,2]
[375926621,1753787439236,-471.07513265,0.00019178,2]
[375926622,1753787439246,-460.0,0.00019178,2]
[375926623,1753787439255,-460.0,0.00019178,2]
[375926624,1753787439264,-460.0,0.00019178,2]
[375926625,1753787439273,-460.0,0.00019178,2]
[375926626,1753787439283,-460.0,0.00019178,2]
[375926627,1753787439292,-460.0,0.00019178,2]
[375926628,1753787439301,-460.0,0.00019178,2]
[375926629,1753787439310,-460.0,0.00019178,2]
[375926630,1753787439319,-561.34565889,0.00019178,2]
[375926631,1753787439328,-1282.06,0.00019178,2]
[375926632,1753787439338,-460.0,0.00019178,2]
[375926634,1753787439347,-530.05406527,0.00019178,2]
[375926635,1753787439357,-1087.12,0.00019178,2]
[375926636,1753787439366,-460.0,0.00019178,2]
[375926637,1753787439375,-460.0,0.00019178,2]
[375926638,1753787439385,-567.15,0.00019178,2]
[375926640,1753787439394,-460.0,0.00019178,2]
[375926642,1753787439405,-460.0,0.00019178,2]
[375926644,1753787439414,-462.53672734,0.00019178,2]
[375926646,1753787439424,-460.0,0.00019178,2]
[375926648,1753787439433,-460.0,0.00019178,2]
[375926650,1753787439443,-292.31466657,0.00019178,2]
[375926652,1753787439453,-460.0,0.00019178,2]
[375926654,1753787439462,-460.0,0.00019178,2]
[375926656,1753787439472,-464.61575298,0.00019178,2]
[375926658,1753787439482,-460.0,0.00019178,2]
[375926660,1753787439492,-631.64,0.00019178,2]
[375926662,1753787439501,-460.0,0.00019178,2]
[375926664,1753787439510,-460.0,0.00019178,2]
[375926666,1753787439519,-460.0,0.00019178,2]
[375926668,1753787439528,-460.69191773,0.00019178,2]
[375926670,1753787439538,-460.0,0.00019178,2]
[375926673,1753787439558,-460.0,0.00019178,2]
[375926675,1753787439567,-460.0,0.00019178,2]
[375926677,1753787439577,-463.1120476,0.00019178,2]
[375926679,1753787439587,-460.0,0.00019178,2]
[375926681,1753787439596,-460.0,0.00019178,2]
[375926683,1753787439606,-460.0,0.00019178,2]
[375926685,1753787439620,-460.0,0.00019178,2]
[375926687,1753787439630,-460.0,0.00019178,2]
[375926689,1753787439640,-460.0,0.00019178,2]
[375926691,1753787439651,-500.0,0.00019178,2]
[375926693,1753787439668,-500.0,0.00019178,2]
[375926694,1753787439677,-605.62,0.00019178,2]
[375926697,1753787439687,-1445.73,0.00019178,2]
[375926699,1753787439697,-460.0,0.00019178,2]
[375926700,1753787439707,-661.27,0.00019178,2]
[375926702,1753787439717,-460.0,0.00019178,2]
[375926704,1753787439726,-460.0,0.00019178,2]
[375926706,1753787439735,-460.0,0.00019178,2]
[375926708,1753787439745,-460.0,0.00019178,2]
[375926710,1753787439754,-460.0,0.00019178,2]
[375926712,1753787439764,-460.94387041,0.00019178,2]
[375926714,1753787439774,-460.0,0.00019178,2]
[375926716,1753787439791,-460.0,0.00019178,2]
[375926718,1753787439806,-460.0,0.00019178,2]
[375926720,1753787439817,-511.67,0.00019178,2]
[375926722,1753787439828,-460.0,0.00019178,2]
[375926724,1753787439839,-9592.76,0.00019178,2]
[375926726,1753787439855,-460.0,0.00019178,2]
[375926728,1753787439864,-460.0,0.00019178,2]
[375926730,1753787439874,-460.0,0.00019178,2]
[375926732,1753787439884,-460.0,0.00019178,2]
[375926734,1753787439894,-460.92425898,0.00019178,2]
[375926736,1753787439904,-460.0,0.00019178,2]
[375926738,1753787439914,-2746.86,0.00019178,2]
[375926740,1753787439923,-460.0,0.00019178,2]
[375926742,1753787439934,-460.0,0.00019178,2]
[375926744,1753787439944,-460.0,0.00019178,2]
[375926746,1753787439954,-496.68,0.00019178,2]
[375926748,1753787439963,-500.0,0.00019178,2]
[375926750,1753787439973,-566.37487365,0.00019178,2]
[375926752,1753787439982,-500.0,0.00019178,2]
[375926754,1753787439992,-500.0,0.00019178,2]
[375926756,1753787440002,-500.0,0.00019178,2]
[375926758,1753787440011,-500.0,0.00019178,2]
[375926760,1753787440021,-500.0,0.00019178,2]
[375926762,1753787440031,-460.0,0.00019178,2]
[375926764,1753787440040,-500.0,0.00019178,2]
[375926766,1753787440050,-500.0,0.00019178,2]
[375926768,1753787440059,-460.0,0.00019178,2]
[375926770,1753787440069,-460.0,0.00019178,2]
[375926772,1753787440079,-460.0,0.00019178,2]
[375926774,1753787440088,-460.0,0.00019178,2]
[375926776,1753787440098,-460.0,0.00019178,2]
[375926778,1753787440108,-460.0,0.00019178,2]
[375926780,1753787440118,-460.0,0.00019178,2]
[375926782,1753787440127,-460.0,0.00019178,2]
[375926784,1753787440137,-2156.19,0.00019178,2]
[375926786,1753787440147,-460.0,0.00019178,2]
[375926788,1753787440157,-460.0,0.00019178,2]
[375926790,1753787440166,-460.0,0.00019178,2]
[375926792,1753787440176,-460.0,0.00019178,2]
[375926794,1753787440185,-460.0,0.00019178,2]
[375926796,1753787440195,-485.48,0.00019178,2]
[375926798,1753787440204,-460.0,0.00019178,2]
[375926800,1753787440214,-464.26101494,0.00019178,2]
[375926802,1753787440223,-460.0,0.00019178,2]
[375926804,1753787440232,-461.71329253,0.00019178,2]
[375926806,1753787440242,-460.0,0.00019178,2]
[375926808,1753787440251,-460.0,0.00019178,2]
[375926810,1753787440261,-460.0,0.00019178,2]
[375926812,1753787440270,-465.65781633,0.00019178,2]
[375926814,1753787440279,-460.0,0.00019178,2]
[375926816,1753787440289,-460.0,0.00019178,2]
[375926818,1753787440298,-460.0,0.00019178,2]
[375926820,1753787440307,-1243.28,0.00019178,2]
[375926822,1753787440317,-460.0,0.00019178,2]
[375926823,1753787440326,-460.0,0.00019178,2]
[375926825,1753787440335,-462.82244201,0.00019178,2]
[375926827,1753787440344,-460.0,0.00019178,2]
[375926829,1753787440354,-460.0,0.00019178,2]
[375926831,1753787440364,-460.0,0.00019178,2]
[375926833,1753787440373,-460.0,0.00019178,2]
[375926835,1753787440383,-460.0,0.00019178,2]
[375926837,1753787440393,-460.0,0.00019178,2]
[375926839,1753787440402,-460.0,0.00019178,2]
[375926841,1753787440413,-462.78268466,0.00019178,2]
[375926843,1753787440424,-462.29192321,0.00019178,2]
[375926845,1753787440433,-460.0,0.00019178,2]
[375926847,1753787440442,-460.0,0.00019178,2]
[375926849,1753787440452,-460.0,0.00019178,2]
[375926851,1753787440461,-460.0,0.00019178,2]
[375926853,1753787440471,-460.0,0.00019178,2]
[375926855,1753787440480,-460.0,0.00019178,2]
[375926857,1753787440490,-460.0,0.00019178,2]
[375926859,1753787440498,-460.0,0.00019178,2]
[375926860,1753787440507,-643.2,0.00019178,2]
[375926862,1753787440517,-460.0,0.00019178,2]
[375926864,1753787440526,-460.0,0.00019178,2]
[375926866,1753787440536,-669.42,0.00019178,2]
[375926868,1753787440545,-460.0,0.00019178,2]
[375926870,1753787440555,-460.0,0.00019178,2]
[375926872,1753787440564,-460.0,0.00019178,2]
[375926874,1753787440573,-460.0,0.00019178,2]
[375926876,1753787440583,-2563.68,0.00019178,2]
[375926878,1753787440593,-460.0,0.00019178,2]
[375926880,1753787440602,-516.31793178,0.00019178,2]
[375926882,1753787440611,-460.0,0.00019178,2]
[375926884,1753787440621,-460.0,0.00019178,2]
[375926886,1753787440630,-460.0,0.00019178,2]
[375926888,1753787440639,-273.75030837,0.00019178,2]
[375926890,1753787440653,-460.0,0.00019178,2]
[375926892,1753787440664,-460.0,0.00019178,2]
[375926894,1753787440674,-460.0,0.00019178,2]
[375926896,1753787440683,-460.0,0.00019178,2]
[375926898,1753787440695,-460.0,0.00019178,2]
[375926900,1753787440704,-460.0,0.00019178,2]
[375926902,1753787440714,-460.0,0.00019178,2]
[375926904,1753787440724,-912.41,0.00019178,2]
[375926906,1753787440734,-552.43970557,0.00019178,2]
[375926908,1753787440743,-460.0,0.00019178,2]
[375926910,1753787440753,-499.15,0.00019178,2]
[375926912,1753787440762,-460.0,0.00019178,2]
[375926914,1753787440772,-460.0,0.00019178,2]
[375926916,1753787440781,-545.94,0.00019178,2]
[375926918,1753787440791,-460.0,0.00019178,2]
[375926920,1753787440800,-3185.05,0.00019178,2]
[375926922,1753787440810,-460.0,0.00019178,2]
[375926924,1753787440819,-460.0,0.00019178,2]
[375926926,1753787440829,-963.37,0.00019178,2]
[375926928,1753787440838,-460.0,0.00019178,2]
[375926930,1753787440850,-822.16,0.00019178,2]
[375926932,1753787440860,-460.0,0.00019178,2]
[375926934,1753787440869,-460.0,0.00019178,2]
[375926936,1753787440879,-460.0,0.00019178,2]
[375926938,1753787440890,-460.0,0.00019178,2]
[375926940,1753787440900,-460.0,0.00019178,2]
[375926942,1753787440911,-8553.3,0.00019178,2]
[375926944,1753787440922,-460.0,0.00019178,2]
[375926946,1753787440932,-460.0,0.00019178,2]
[375926948,1753787440941,-5043.88,0.00019178,2]
[375926950,1753787440950,-891.66,0.00019178,2]
[375926952,1753787440960,-460.0,0.00019178,2]
[375926954,1753787440969,-460.0,0.00019178,2]
[375926956,1753787440979,-460.0,0.00019178,2]
[375926958,1753787440988,-460.0,0.00019178,2]
[375926960,1753787440998,-460.0,0.00019178,2]
[375926962,1753787441008,-460.0,0.00019178,2]
[375926964,1753787441018,-460.0,0.00019178,2]
[375926966,1753787441028,-460.0,0.00019178,2]
[375926968,1753787441037,-460.0,0.00019178,2]
[375926970,1753787441047,-460.0,0.00019178,2]
[375926972,1753787441057,-460.0,0.00019178,2]
[375926974,1753787441066,-460.0,0.00019178,2]
[375926976,1753787441075,-846.98,0.00019178,2]
[375926978,1753787441085,-460.0,0.00019178,2]
[375926980,1753787441094,-989.35,0.00019178,2]
[375926982,1753787441104,-460.0,0.00019178,2]
[375926984,1753787441113,-460.0,0.00019178,2]
[375926986,1753787441123,-460.0,0.00019178,2]
[375926988,1753787441132,-460.0,0.00019178,2]
[375926990,1753787441143,-460.0,0.00019178,2]
[375926992,1753787441152,-460.0,0.00019178,2]
[375926994,1753787441163,-460.0,0.00019178,2]
[375926996,1753787441172,-851.98,0.00019178,2]
[375926998,1753787441181,-460.0,0.00019178,2]
[375927000,1753787441191,-656.81,0.00019178,2]
[375927002,1753787441200,-460.0,0.00019178,2]
[375927004,1753787441209,-858.02,0.00019178,2]
[375927006,1753787441218,-460.0,0.00019178,2]
[375927008,1753787441227,-460.0,0.00019178,2]
[375927010,1753787441237,-460.0,0.00019178,2]
[375927011,1753787441248,-460.0,0.00019178,2]
[375927013,1753787441258,-460.0,0.00019178,2]
[375927015,1753787441268,-460.0,0.00019178,2]
[375927017,1753787441278,-460.0,0.00019178,2]
[375927019,1753787441288,-460.0,0.00019178,2]
[375927021,1753787441298,-460.0,0.00019178,2]
[375927023,1753787441307,-1211.98,0.00019178,2]
[375927025,1753787441317,-2652.76,0.00019178,2]
[375927027,1753787441326,-463.30510584,0.00019178,2]
[375927029,1753787441335,-460.0,0.00019178,2]
[375927031,1753787441345,-463.70384834,0.00019178,2]
[375927033,1753787441354,-460.0,0.00019178,2]
[375927035,1753787441363,-460.0,0.00019178,2]
[375927037,1753787441372,-460.0,0.00019178,2]
[375927039,1753787441382,-460.0,0.00019178,2]
[375927041,1753787441392,-4341.49,0.00019178,2]
[375927043,1753787441403,-941.96,0.00019178,2]
[375927045,1753787441415,-567.68052798,0.00019178,2]
[375927047,1753787441425,-460.0,0.00019178,2]
[375927049,1753787441435,-460.0,0.00019178,2]
[375927051,1753787441444,-460.0,0.00019178,2]
[375927053,1753787441454,-460.0,0.00019178,2]
[375927055,1753787441463,-1602.07,0.00019178,2]
[375927057,1753787441472,-460.0,0.00019178,2]
[375927059,1753787441482,-460.0,0.00019178,2]
[375927061,1753787441492,-460.90723867,0.00019178,2]
[375927063,1753787441501,-460.0,0.00019178,2]
[375927065,1753787441510,-524.45075327,0.00019178,2]
[375927067,1753787441520,-460.0,0.00019178,2]
[375927069,1753787441529,-460.0,0.00019178,2]
[375927071,1753787441540,-460.0,0.00019178,2]
[375927073,1753787441551,-460.0,0.00019178,2]
[375927075,1753787441559,-460.0,0.00019178,2]
[375927077,1753787441570,-460.0,0.00019178,2]
[375927079,1753787441586,-460.0,0.00019178,2]
[375927081,1753787441605,-460.0,0.00019178,2]
[375927083,1753787441615,-1159.05,0.00019178,2]
[375927085,1753787441626,-3991.99,0.00019178,2]
[375927087,1753787441635,-463.58039612,0.00019178,2]
[375927089,1753787441645,-584.42,0.00019178,2]
[375927091,1753787441654,-460.0,0.00019178,2]
[375927093,1753787441665,-1242.75,0.00019178,2]
[375927095,1753787441675,-464.3775728,0.00019178,2]
[375927097,1753787441685,-460.0,0.00019178,2]
[375927099,1753787441694,-460.0,0.00019178,2]
[375927101,1753787441704,-805.38,0.00019178,2]
[375927103,1753787441714,-460.0,0.00019178,2]
[375927105,1753787441724,-570.34,0.00019178,2]
[375927107,1753787441734,-460.0,0.00019178,2]
[375927109,1753787441743,-3092.36,0.00019178,2]
[375927111,1753787441755,-460.0,0.00019178,2]
[375927113,1753787441765,-460.0,0.00019178,2]
[375927115,1753787441774,-1173.41,0.00019178,2]
[375927117,1753787441783,-460.0,0.00019178,2]
[375927119,1753787441793,-460.0,0.00019178,2]
[375927121,1753787441803,-460.0,0.00019178,2]
[375927123,1753787441812,-460.0,0.00019178,2]
[375927125,1753787441822,-460.0,0.00019178,2]
[375927127,1753787441832,-1283.38,0.00019178,2]
[375927129,1753787441844,-460.0,0.00019178,2]
[375927131,1753787441854,-460.0,0.00019178,2]
[375927133,1753787441863,-460.0,0.00019178,2]
[375927135,1753787441872,-460.0,0.00019178,2]
[375927137,1753787441882,-460.0,0.00019178,2]
[375927139,1753787441893,-3185.9,0.00019178,2]
[375927141,1753787441902,-1107.71,0.00019178,2]
[375927143,1753787441913,-460.0,0.00019178,2]
[375927145,1753787441924,-460.0,0.00019178,2]
[375927147,1753787441933,-460.0,0.00019178,2]
[375927149,1753787441942,-460.0,0.00019178,2]
[375927151,1753787441951,-460.0,0.00019178,2]
[375927153,1753787441961,-1028.98,0.00019178,2]
[375927155,1753787441970,-3420.68,0.00019178,2]
[375927157,1753787441980,-460.0,0.00019178,2]
[375927159,1753787441989,-885.34,0.00019178,2]
[375927161,1753787441999,-650.53,0.00019178,2]
[375927163,1753787442008,-460.0,0.00019178,2]
[375927165,1753787442018,-460.0,0.00019178,2]
[375927167,1753787442028,-460.0,0.00019178,2]
[375927169,1753787442038,-460.0,0.00019178,2]
[375927171,1753787442048,-522.64,0.00019178,2]
[375927173,1753787442058,-460.0,0.00019178,2]
[375927175,1753787442067,-460.0,0.00019178,2]
[375927177,1753787442077,-1209.54,0.00019178,2]
[375927179,1753787442086,-793.46,0.00019178,2]
[375927181,1753787442096,-460.0,0.00019178,2]
[375927183,1753787442105,-460.0,0.00019178,2]
[375927185,1753787442115,-460.0,0.00019178,2]
[375927187,1753787442124,-460.0,0.00019178,2]
[375927189,1753787442134,-3298.21,0.00019178,2]
[375927191,1753787442155,-1341.13,0.00019178,2]
[375927193,1753787442168,-460.0,0.00019178,2]
[375927195,1753787442178,-460.0,0.00019178,2]
[375927197,1753787442187,-1212.63,0.00019178,2]
[375927199,1753787442196,-460.0,0.00019178,2]
[375927201,1753787442206,-666.0,0.00019178,2]
[375927203,1753787442215,-582.178085,0.00019178,2]
[375927205,1753787442224,-151.0,0.0001921,2]
[375927207,1753787442234,-151.0,0.0001921,2]
[375927209,1753787442243,-151.0,0.0001921,2]
[375927211,1753787442252,-151.0,0.0001921,2]
[375927213,1753787442265,-234.58297361,0.00019329,2]
[375927215,1753787442275,-460.0,0.00019452,2]
[375927217,1753787442285,-460.0,0.00019452,2]
[375927219,1753787442294,-460.0,0.00019452,2]
[375927221,1753787442304,-603.00291695,0.00019452,2]
[375927223,1753787442314,-471.56839883,0.00019452,2]
[375927225,1753787442324,-460.0,0.00019452,2]
[375927227,1753787442333,-460.0,0.00019452,2]
[375927229,1753787442343,-460.0,0.00019452,2]
[375927231,1753787442352,-460.0,0.00019452,2]
[375927233,1753787442361,-460.0,0.00019452,2]
[375927235,1753787442371,-460.0,0.00019452,2]
[375927237,1753787442381,-460.0,0.00019452,2]
[375927239,1753787442390,-460.0,0.00019452,2]
[375927241,1753787442400,-326.90425023,0.00019452,2]
[375927244,1753787442412,-460.0,0.00019452,2]
[375927247,1753787442422,-460.0,0.00019452,2]
[375927249,1753787442432,-466.88179882,0.00019452,2]
[375927251,1753787442442,-469.62,0.00019452,2]
[375927253,1753787442452,-460.0,0.00019452,2]
[375927255,1753787442462,-460.0,0.00019452,2]
[375927257,1753787442471,-460.0,0.00019452,2]
[375927259,1753787442481,-1282.06,0.00019452,2]
[375927261,1753787442491,-1087.12,0.00019452,2]
[375927263,1753787442501,-460.0,0.00019452,2]
[375927265,1753787442511,-567.15,0.00019452,2]
[375927267,1753787442521,-460.0,0.00019452,2]
[375927270,1753787442530,-460.0,0.00019452,2]
[375927272,1753787442540,-460.0,0.00019452,2]
[375927274,1753787442550,-460.0,0.00019452,2]
[375927276,1753787442559,-196.92630117,0.00019452,2]
[375927278,1753787442570,-631.64,0.00019452,2]
[375927298,1753787442736,-411.08405363,0.00019452,2]
[375927301,1753787442767,-460.0,0.00019452,2]
[375927303,1753787442777,-1445.73,0.00019452,2]
[375927305,1753787442786,-661.27,0.00019452,2]
[375927307,1753787442795,-460.0,0.00019452,2]
[375927309,1753787442805,-460.0,0.00019452,2]
[375927311,1753787442815,-460.0,0.00019452,2]
[375927313,1753787442824,-460.0,0.00019452,2]
[375927315,1753787442834,-460.0,0.00019452,2]
[375927317,1753787442848,-511.67,0.00019452,2]
[375927319,1753787442857,-598.06330181,0.00019452,2]
[375927321,1753787442867,-9592.76,0.00019452,2]
[375927322,1753787442876,-460.0,0.00019452,2]
[375927324,1753787442886,-2746.86,0.00019452,2]
[375927327,1753787442896,-471.92079923,0.00019452,2]
[375927328,1753787442905,-496.68,0.00019452,2]
[375927331,1753787442916,-460.0,0.00019452,2]
[375927332,1753787442926,-460.0,0.00019452,2]
[375927334,1753787442936,-460.0,0.00019452,2]
[375927336,1753787442946,-460.0,0.00019452,2]
[375927338,1753787442955,-2156.19,0.00019452,2]
[375927340,1753787442964,-460.0,0.00019452,2]
[375927342,1753787442974,-460.0,0.00019452,2]
[375927344,1753787442983,-460.0,0.00019452,2]
[375927346,1753787442993,-485.48,0.00019452,2]
[375927348,1753787443003,-374.56004623,0.00019452,2]
[375927350,1753787443012,-460.0,0.00019452,2]
[375927353,1753787443022,-460.0,0.00019452,2]
[375927354,1753787443034,-460.0,0.00019452,2]
[375927356,1753787443043,-460.0,0.00019452,2]
[375927358,1753787443053,-1243.28,0.00019452,2]
[375927360,1753787443063,-460.0,0.00019452,2]
[375927362,1753787443074,-460.0,0.00019452,2]
[375927365,1753787443085,-460.0,0.00019452,2]
[375927367,1753787443095,-460.0,0.00019452,2]
[375927369,1753787443105,-460.0,0.00019452,2]
[375927371,1753787443115,-460.0,0.00019452,2]
[375927373,1753787443125,-460.0,0.00019452,2]
[375927375,1753787443135,-643.2,0.00019452,2]